bitfinex/quotes_ETHUSD_20240902
["timestamp","ask_amount","ask_price","bid_price","bid_amount"]
[1725271045893,0.05918605,2525.0,2524.3,0.07922687]
[1725271046096,0.05918605,2525.3,2524.3,0.47782687]
[1725271046396,2.36708605,2525.9,2524.7,0.3986]
[1725271046653,2.3079,2525.9,2525.0,2.77222]
[1725271046857,2.3079,2525.9,2525.3,2.77189]
[1725271047077,0.05918605,2525.8,2525.3,2.77189]
[1725271047415,0.05918605,2525.8,2525.1,2.77215]
[1725271047664,0.05918605,2525.8,2524.7,2.77259]
[1725271047833,3.06733466,2525.8,2524.7,2.77259]
[1725271048234,2.77172,2525.5,2524.8,2.77248]
[1725271048470,0.05918605,2525.4,2524.7,2.77259]
[1725271048622,0.05918605,2525.4,2524.0,5.77331]
[1725271048623,2.3076,2525.2,2524.5,2.77281]
[1725271048816,0.05918605,2525.1,2524.5,2.77281]
[1725271049366,0.05918605,2525.1,2524.3,2.77299]
[1725271049582,0.05918605,2525.1,2523.6,0.29845265]
[1725271049583,2.2597,2525.0,2523.9,2.77338]
[1725271049854,2.2597,2525.0,2523.0,1.61383029]
[1725271049855,2.77262,2524.7,2524.1,2.77318]
[1725271050170,0.05918605,2524.6,2524.1,2.77318]
[1725271050390,0.05918605,2524.6,2523.6,0.3986]
[1725271050391,0.05918605,2524.6,2523.9,2.77338]
[1725271050516,0.05918605,2524.6,2523.7,2.77369]
[1725271050721,0.05918605,2524.6,2523.1,2.77435]
[1725271050722,2.77346,2524.0,2523.1,2.77435]
[1725271051016,5.13401,2523.8,2523.1,2.77435]
[1725271051255,5.13401,2523.8,2522.8,0.39850827]
[1725271051256,2.3604,2523.8,2523.2,0.07926632]
[1725271051414,2.41958605,2524.3,2523.8,2.77359]
[1725271051615,0.05918605,2524.2,2523.9,2.77348]
[1725271051871,0.05918605,2524.2,2523.5,2.77386]
[1725271052083,0.57845066,2524.2,2523.1,0.0792575]
[1725271052359,0.05918605,2524.2,2522.8,2.77461]
[1725271052663,0.05918605,2524.2,2523.7,2.77367]
[1725271053156,2.77349,2523.9,2523.1,2.77432]
[1725271053366,0.05918605,2523.8,2523.3,2.77413]
[1725271053522,0.05918605,2523.8,2523.1,2.77432]
[1725271053722,0.05918605,2523.8,2523.2,2.77425]
[1725271054149,0.05918605,2523.8,2522.9,2.77454]
[1725271054150,2.3604,2523.7,2522.9,2.77454]
[1725271054436,0.05918605,2523.6,2522.9,2.77454]
[1725271054637,0.05918605,2523.6,2523.3,2.77413]
[1725271054863,2.3604,2523.7,2523.0,0.07926342]
[1725271055029,0.05918605,2524.2,2524.1,2.77325]
[1725271055368,2.3604,2524.3,2523.9,2.77344]
[1725271055521,2.3604,2524.3,2523.5,2.77387]
[1725271055522,0.05918605,2524.2,2523.6,2.77379]
[1725271055721,0.05918605,2524.2,2523.1,2.77431]
[1725271055984,0.05918605,2524.2,2524.1,2.77326]
[1725271056178,0.05918605,2524.8,2523.6,0.07923935]
[1725271056330,0.05918605,2524.8,2524.4,2.77285]
[1725271056523,0.05918605,2524.8,2523.6,0.68390893]
[1725271056732,0.05918605,2524.8,2524.3,2.77301]
[1725271057179,0.05918605,2524.8,2524.1,2.77326]
[1725271057337,2.7726,2524.7,2523.9,2.77344]
[1725271057541,3.11508466,2524.6,2523.8,2.77358]
[1725271057738,0.05918605,2524.6,2523.8,2.77358]
[1725271057974,0.05918605,2524.6,2522.6,3.27759119]
[1725271057975,2.77294,2524.4,2522.6,2.77486]
[1725271058175,0.56293005,2524.3,2523.4,2.77395]
[1725271058514,0.56293005,2524.3,2523.2,2.77419]
[1725271058515,2.77338,2524.0,2523.2,2.77419]
[1725271058717,2.77338,2524.0,2523.1,2.77434]
[1725271058718,2.51098605,2523.9,2523.1,2.77434]
[1725271059016,2.51098605,2523.9,2523.2,2.77423]
[1725271059017,2.77369,2523.8,2523.2,2.77423]
[1725271059219,0.05918605,2523.7,2523.1,2.77436]
[1725271059398,0.05918605,2523.7,2523.2,2.77415]
[1725271059605,2.4518,2523.9,2523.6,2.77374]
[1725271059924,0.05918605,2523.8,2523.4,2.77395]
[1725271060105,0.05918605,2523.8,2523.2,2.77416]
[1725271060401,0.05918605,2523.8,2523.1,2.77426]
[1725271060402,2.83285605,2523.8,2523.1,2.77426]
[1725271060714,2.7737,2523.7,2523.1,2.77426]
[1725271060867,0.05918605,2523.6,2523.1,2.77426]
[1725271061266,2.83302605,2523.6,2522.9,2.77449]
[1725271061571,2.774,2523.5,2522.8,2.77466]
[1725271061777,2.77426,2523.2,2522.5,2.77499]
[1725271061985,0.05918605,2523.1,2522.6,2.7749]
[1725271062203,2.41598605,2523.1,2522.4,2.77512]
[1725271062425,2.41598605,2523.1,2522.3,3.17381]
[1725271062426,2.41598605,2523.1,2522.6,2.77488]
[1725271062711,2.41598605,2523.1,2522.5,2.77494]
[1725271063004,2.77476,2522.8,2522.1,2.77541]
[1725271063226,2.77476,2522.8,2521.9,2.77562]
[1725271063227,0.05918605,2522.7,2522.3,2.77523]
[1725271063364,2.3568,2523.1,2522.6,2.77484]
[1725271063567,0.05918605,2523.0,2522.6,2.77482]
[1725271064902,0.05918605,2523.0,2522.4,5.55014]
[1725271065113,0.05918605,2523.0,2522.4,2.77505]
[1725271065408,2.41598605,2523.1,2522.8,2.77461]
[1725271065569,2.3568,2523.1,2522.8,2.77461]
[1725271065762,0.05918605,2523.0,2522.6,2.77484]
[1725271066004,0.05918605,2523.0,2522.4,2.77503]
[1725271066382,0.05918605,2523.0,2522.5,2.77501]
[1725271066588,0.05918605,2523.0,2522.6,2.77489]
[1725271067161,0.05918605,2523.0,2522.5,2.77494]
[1725271067401,0.05918605,2523.0,2522.4,2.7751]
[1725271068113,2.77465,2522.9,2522.3,2.77522]
[1725271068265,0.05918605,2522.8,2522.4,2.77506]
[1725271068462,0.05918605,2522.8,2522.4,2.77505]
[1725271069123,0.05918605,2523.5,2522.5,0.07928676]
[1725271069337,0.05918605,2523.5,2523.0,2.77445]
[1725271069537,2.83317605,2523.5,2522.9,2.7745]
[1725271069827,2.83317605,2523.5,2522.7,2.77477]
[1725271069828,2.77404,2523.4,2522.7,2.77477]
[1725271070025,0.05918605,2523.3,2522.9,2.77451]
[1725271070225,0.05918605,2523.3,2522.5,2.77502]
[1725271070385,0.05918605,2523.3,2522.7,2.77479]
[1725271070590,0.05918605,2523.3,2522.2,0.07928348]
[1725271070591,0.05918605,2523.3,2522.8,2.77467]
[1725271070922,5.21136,2523.6,2522.8,2.77467]
[1725271070923,0.05918605,2523.5,2522.8,2.77467]
[1725271071125,0.58624066,2523.5,2522.8,2.77467]
[1725271071611,0.58624066,2523.5,2522.6,2.77487]
[1725271071612,2.4533,2523.3,2522.6,2.77491]
[1725271071921,0.05918605,2523.2,2522.6,2.77491]
[1725271072125,0.05918605,2523.2,2522.3,0.07928288]
[1725271072634,0.05918605,2523.2,2522.8,2.77463]
[1725271073086,0.05918605,2523.2,2522.0,0.3986]
[1725271073346,0.05918605,2523.2,2521.3,2.3441]
[1725271073347,2.77476,2522.8,2522.1,2.77546]
[1725271073492,0.05918605,2522.9,2521.7,0.07929325]
[1725271073693,0.05918605,2522.9,2522.4,2.77506]
[1725271073929,0.05918605,2522.9,2522.5,2.77493]
[1725271074136,0.05918605,2522.9,2522.4,2.77506]
[1725271074328,0.05918605,2522.9,2521.9,0.07929252]
[1725271074722,0.05918605,2522.9,2522.0,2.77556]
[1725271074918,2.83361605,2523.1,2522.4,2.77504]
[1725271075123,3.38150091,2523.1,2522.4,2.77504]
[1725271075326,2.77448,2523.0,2522.4,2.77504]
[1725271075546,2.3451,2523.9,2522.5,0.07927524]
[1725271075700,5.66334678,2525.1,2522.6,2.961]
[1725271075701,0.05918605,2523.8,2522.6,2.961]
[1725271076033,5.11823,2524.3,2522.6,2.961]
[1725271076034,2.77344,2524.0,2523.2,2.77423]
[1725271076237,0.33653005,2523.9,2523.2,2.77423]
[1725271076407,2.77374,2523.7,2523.0,5.54886]
[1725271076607,2.35178605,2523.6,2523.2,2.77417]
[1725271076836,2.35178605,2523.6,2523.0,2.7744]
[1725271077027,2.35178605,2523.6,2523.0,2.77439]
[1725271077327,5.12559605,2523.6,2523.0,2.77439]
[1725271078450,5.12559605,2523.6,2522.8,2.77466]
[1725271078736,5.12559605,2523.6,2521.0,0.1]
[1725271078737,2.429,2524.0,2523.5,2.77382]
[1725271079055,2.429,2524.0,2523.7,2.77367]
[1725271079197,0.05918605,2524.3,2523.7,2.7736]
[1725271079402,0.05918605,2524.3,2523.9,2.7734]
[1725271079597,0.05918605,2524.3,2523.7,2.7736]
[1725271079948,0.05918605,2524.3,2523.4,2.774]
[1725271079949,2.77343,2524.0,2523.4,2.774]
[1725271080238,0.05918605,2524.3,2522.6,5.2759]
[1725271080239,0.05918605,2523.9,2523.1,3.17292]
[1725271080445,2.77378,2523.7,2523.1,3.17292]
[1725271080702,0.23667861,2525.2,2524.8,2.77243]
[1725271081042,2.429,2525.2,2525.0,2.77227]
[1725271081309,2.77103,2526.2,2525.0,2.77227]
[1725271081310,2.45558605,2525.7,2525.5,2.77162]
[1725271081470,2.3964,2525.7,2525.6,2.77161]
[1725271081659,2.3964,2526.1,2525.6,2.77161]
[1725271081856,0.05918605,2526.0,2525.1,2.85130922]
[1725271082075,0.30474465,2526.0,2525.3,2.77188]
[1725271082252,2.3964,2526.1,2525.6,2.77152]
[1725271082455,2.3964,2526.1,2525.4,2.77179]
[1725271082758,2.3964,2526.1,2525.7,2.77145]
[1725271082984,2.3964,2526.1,2525.2,0.3986]
[1725271083359,2.77172,2525.6,2524.7,2.77258]
[1725271083579,0.56923801,2526.0,2525.3,2.77189]
[1725271083580,0.05918605,2525.9,2525.3,2.77189]
[1725271084005,2.3964,2526.1,2525.6,2.77159]
[1725271084006,0.05918605,2526.0,2525.6,2.77159]
[1725271084726,0.05918605,2526.0,2524.8,2.77249]
[1725271084858,2.45558605,2526.1,2525.7,2.77142]
[1725271085058,0.05918605,2526.4,2525.8,2.77131]
[1725271085286,0.36425985,2526.4,2525.6,2.77151]
[1725271085612,0.54255196,2526.3,2525.8,2.77139]
[1725271085810,0.05918605,2526.2,2525.4,2.7718]
[1725271085975,0.05918605,2526.2,2524.9,0.317109]
[1725271085976,3.37271801,2526.2,2524.9,0.317109]
[1725271086182,0.73479927,2526.2,2525.6,2.77157]
[1725271086397,0.73479927,2526.2,2525.5,2.77171]
[1725271086564,0.05918605,2526.2,2524.9,0.317109]
[1725271086762,2.82992605,2526.4,2525.7,2.77142]
[1725271087198,2.77085,2526.3,2525.7,2.77142]
[1725271087414,2.77085,2526.3,2525.5,2.77169]
[1725271087415,0.34218966,2526.2,2525.5,2.77169]
[1725271087710,0.34218966,2526.2,2525.6,2.77159]
[1725271087895,0.34218966,2526.2,2524.9,0.317109]
[1725271087896,0.05918605,2526.2,2525.3,2.77193]
[1725271088138,0.05918605,2526.2,2525.6,2.77161]
[1725271088416,0.05918605,2526.2,2525.2,2.77205]
[1725271088417,5.12481,2525.8,2525.2,2.77205]
[1725271088617,2.3534,2525.8,2525.3,2.77186]
[1725271088774,0.05918605,2525.7,2525.3,2.77186]
[1725271089113,0.05918605,2525.7,2525.3,2.77193]
[1725271089684,2.3534,2525.8,2525.5,2.77172]
[1725271089887,0.05918605,2525.7,2525.3,3.049113]
[1725271090091,2.41258605,2525.8,2525.3,2.77192]
[1725271090399,2.3534,2525.8,2525.3,2.77192]
[1725271090626,0.05918605,2525.7,2525.3,2.77192]
[1725271090790,2.3534,2525.8,2525.3,2.77192]
[1725271090791,2.3534,2525.8,2525.3,0.56232332]
[1725271091117,2.3534,2525.8,2525.4,2.77176]
[1725271091282,0.05918605,2526.1,2525.6,2.77154]
[1725271091616,0.05918605,2526.1,2525.8,2.77136]
[1725271091925,0.05918605,2526.1,2525.3,2.77186]
[1725271091926,2.77118,2526.0,2525.3,2.77186]
[1725271092137,0.05918605,2525.9,2525.4,2.77182]
[1725271092286,0.05918605,2525.9,2525.2,2.77198]
[1725271092487,2.77162,2525.6,2525.0,2.77224]
[1725271092722,0.05918605,2525.5,2525.0,2.77224]
[1725271092931,0.05918605,2525.5,2525.0,2.77218]
[1725271093092,2.55788605,2525.5,2524.9,2.77236]
[1725271093307,2.55788605,2525.5,2524.8,2.77245]
[1725271093488,2.4987,2524.6,2524.0,2.77334]
[1725271093835,0.05918605,2524.5,2524.2,2.77315]
[1725271094134,0.05918605,2524.5,2523.8,2.77357]
[1725271094430,0.31497466,2524.5,2523.9,2.77341]
[1725271094643,0.31497466,2524.5,2523.4,3.17258]
[1725271094644,2.77302,2524.4,2523.4,3.17258]
[1725271094926,2.77323,2524.2,2523.2,2.77422]
[1725271095128,0.05918605,2524.1,2523.6,2.7738]
[1725271095288,0.05918605,2524.4,2523.6,2.7738]
[1725271095486,0.05918605,2524.4,2523.5,2.77391]
[1725271095731,0.05918605,2524.4,2523.6,2.77381]
[1725271095885,0.05918605,2524.4,2523.8,2.77358]
[1725271096317,0.05918605,2524.4,2524.0,2.77335]
[1725271096833,0.05918605,2524.5,2524.1,2.77324]
[1725271097828,0.05918605,2524.5,2524.0,2.77332]
[1725271098035,0.05918605,2524.5,2523.9,2.77348]
[1725271098191,0.05918605,2524.5,2524.1,2.77325]
[1725271098690,0.05918605,2524.5,2523.9,2.77348]
[1725271098891,0.59223566,2524.5,2523.7,2.77368]
[1725271099241,0.05918605,2524.5,2523.7,2.77368]
[1725271099437,2.77317,2524.2,2523.5,3.17251]
[1725271099636,0.05918605,2524.1,2523.5,2.77391]
[1725271100043,2.83248605,2524.1,2523.4,0.3986]
[1725271100219,2.2582,2523.9,2523.4,0.3986]
[1725271100421,2.83278605,2523.8,2523.1,2.77433]
[1725271100732,2.83289605,2523.7,2522.9,2.77453]
[1725271100900,2.83289605,2523.7,2523.1,2.77435]
[1725271101942,0.05918605,2523.7,2523.3,2.77414]
[1725271102128,0.05918605,2523.8,2523.5,2.77383]
[1725271102438,0.05918605,2524.1,2523.7,2.77366]
[1725271102929,0.05918605,2524.1,2523.8,2.77351]
[1725271103164,2.2661,2524.2,2523.1,2.77429]
[1725271103308,0.05918605,2524.1,2523.1,2.77429]
[1725271104037,2.77369,2523.8,2523.2,2.77422]
[1725271104254,2.83288605,2523.7,2523.1,2.77429]
[1725271104404,0.33655505,2523.7,2523.1,2.77429]
[1725271104805,2.77383,2523.6,2522.9,2.77455]
[1725271105048,0.05918605,2523.5,2522.9,2.77449]
[1725271105542,0.05918605,2523.5,2523.1,2.77428]
[1725271105741,0.05918605,2523.5,2522.9,2.77453]
[1725271105918,0.05918605,2523.5,2522.8,2.7746]
[1725271106118,2.77391,2523.6,2522.8,2.7746]
[1725271106323,2.77403,2523.4,2522.8,2.7746]
[1725271106523,2.77434,2523.2,2522.6,2.77484]
[1725271106846,0.05918605,2523.1,2522.6,2.77484]
[1725271107016,0.05918605,2523.1,2522.5,0.3986]
[1725271107224,0.05918605,2523.1,2522.6,2.77486]
[1725271107408,0.05918605,2523.1,2522.6,2.77484]
[1725271107608,5.20204605,2523.1,2522.4,5.55011]
[1725271107830,2.42768605,2523.1,2522.6,2.77483]
[1725271108110,2.42768605,2523.1,2522.6,5.54967]
[1725271108324,2.42768605,2523.1,2522.6,2.77483]
[1725271108737,2.42768605,2523.1,2522.7,2.77477]
[1725271109046,0.05918605,2523.0,2522.4,5.55013]
[1725271109212,0.05918605,2523.0,2522.5,2.77501]
[1725271109415,0.05918605,2523.0,2522.6,2.77491]
[1725271110948,0.05918605,2523.0,2522.7,2.77477]
[1725271111255,0.05918605,2523.0,2522.6,2.77482]
[1725271111733,0.05918605,2523.0,2522.6,5.54966]
[1725271111947,0.05918605,2523.0,2522.7,2.77479]
[1725271112238,0.05918605,2523.0,2522.6,2.77482]
[1725271112824,2.77459,2522.9,2522.2,2.77533]
[1725271113151,2.3685,2523.1,2522.7,2.7748]
[1725271113365,0.05918605,2523.0,2522.7,2.7748]
[1725271113523,0.22633,2523.7,2522.6,0.07928]
[1725271113524,0.05918605,2523.3,2522.6,0.07928]
[1725271113711,0.05918605,2523.3,2523.0,2.77447]
[1725271113912,0.05918605,2523.3,2522.8,2.7746]
[1725271114606,2.77433,2523.2,2522.6,2.77486]
[1725271114832,0.05918605,2523.1,2522.6,2.77486]
[1725271115356,0.05918605,2523.1,2522.4,2.77512]
[1725271115655,2.77449,2523.0,2522.4,2.77512]
[1725271115813,0.05918605,2522.9,2522.4,2.77512]
[1725271116017,5.07432,2522.8,2522.2,2.7753]
[1725271116213,0.05918605,2522.7,2522.2,2.7753]
[1725271116723,2.83399605,2522.7,2522.0,2.77546]
[1725271117137,0.05918605,2522.7,2522.0,0.277546]
[1725271117421,0.05918605,2522.7,2522.2,2.77527]
[1725271118945,0.05918605,2522.7,2522.1,2.77546]
[1725271118946,2.83398605,2522.7,2522.1,2.77546]
[1725271119780,0.05918605,2522.7,2522.1,2.77539]
[1725271120280,2.83399605,2522.7,2522.1,2.77539]
[1725271120483,0.05918605,2522.7,2522.2,2.77532]
[1725271120702,0.05918605,2522.7,2522.1,2.77539]
[1725271120836,0.57253466,2522.7,2522.1,2.77539]
[1725271121336,0.05918605,2522.7,2522.1,2.77539]
[1725271121541,2.83399605,2522.7,2522.1,2.77539]
[1725271122346,0.05918605,2522.7,2522.1,2.77538]
[1725271122544,2.35878605,2522.8,2522.4,2.77506]
[1725271123245,2.2996,2522.8,2522.5,2.77495]
[1725271123852,0.05918605,2523.1,2522.5,0.07928256]
[1725271124082,0.05918605,2523.2,2522.7,2.77476]
[1725271124787,2.83344605,2523.2,2522.5,2.77494]
[1725271125093,3.63452065,2523.2,2522.5,2.77494]
[1725271125456,3.63452065,2523.2,2522.6,2.7749]
[1725271126186,3.63456065,2523.2,2522.3,2.77517]
[1725271126382,3.63456065,2523.2,2522.5,2.77493]
[1725271126745,3.63456065,2523.2,2522.3,5.62962215]
[1725271127090,5.54904,2523.0,2522.3,2.77515]
[1725271127290,0.05918605,2522.9,2522.3,2.77515]
[1725271127586,0.05918605,2523.2,2522.3,0.0792822]
[1725271127798,2.4033,2523.3,2522.3,0.4778822]
[1725271128098,2.4033,2523.3,2523.1,2.77435]
[1725271128268,2.4033,2523.3,2522.9,2.77451]
[1725271128456,2.4033,2523.3,2522.4,2.77507]
[1725271128457,0.05918605,2523.2,2522.4,2.77507]
[1725271128657,0.05918605,2523.2,2522.3,0.3986]
[1725271128658,2.70873466,2523.3,2522.9,2.77456]
[1725271128989,2.70873466,2523.3,2522.7,5.54944]
[1725271128990,0.05918605,2523.2,2522.7,5.54944]
[1725271129559,2.4033,2523.3,2522.9,2.77451]
[1725271129770,2.4033,2523.3,2523.0,2.77446]
[1725271129973,0.05918605,2523.2,2522.7,5.54942]
[1725271130192,0.05918605,2523.2,2522.8,2.77462]
[1725271130399,0.05918605,2523.2,2522.9,2.77454]
[1725271130750,2.46248605,2523.3,2522.9,2.7745]
[1725271130945,2.3151,2524.3,2524.1,2.77316]
[1725271131148,2.37428605,2524.7,2524.3,2.77296]
[1725271131448,2.3151,2524.7,2524.1,2.77321]
[1725271131683,2.3151,2524.7,2524.3,5.54593]
[1725271131975,2.3151,2524.7,2524.3,2.77296]
[1725271132153,2.3151,2524.7,2524.4,2.7729]
[1725271132552,0.05918605,2525.1,2524.5,2.77282]
[1725271132750,2.3784,2525.2,2524.7,2.7725]
[1725271132751,2.43758605,2525.2,2524.7,2.7725]
[1725271133083,2.43758605,2525.2,2524.5,2.7728]
[1725271133084,5.20972605,2525.2,2524.5,2.7728]
[1725271133330,5.20972605,2525.2,2524.6,2.77267]
[1725271133331,2.43758605,2525.2,2524.6,2.77267]
[1725271133445,5.20964605,2525.2,2524.6,2.7727]
[1725271133645,5.20964605,2525.2,2524.5,2.7728]
[1725271133646,0.05918605,2525.4,2524.9,2.77236]
[1725271134592,0.05918605,2525.4,2524.5,2.77273]
[1725271134893,2.77104239,2525.0,2524.5,0.554557]
[1725271135046,0.05918605,2524.9,2524.4,2.77284]
[1725271135242,2.77104239,2525.0,2524.4,2.77284]
[1725271135243,0.05918605,2525.0,2524.4,2.77284]
[1725271135448,2.43758605,2525.0,2524.4,2.77284]
[1725271135898,2.77241,2524.9,2524.2,2.7731]
[1725271136057,0.05918605,2524.8,2524.3,2.77304]
[1725271136478,2.83169605,2524.8,2524.2,3.367603]
[1725271136784,0.05918605,2524.7,2524.2,3.367593]
[1725271137223,2.83178605,2524.7,2524.0,3.1719]
[1725271138509,2.83178605,2524.7,2523.9,2.77345]
[1725271138510,2.2615,2524.4,2523.9,2.77345]
[1725271138678,2.2615,2524.4,2523.9,0.594559]
[1725271138883,2.2615,2524.4,2524.0,2.7733]
[1725271139113,2.2615,2524.4,2524.2,2.77307]
[1725271139419,2.32398605,2525.0,2524.4,2.77286]
[1725271139627,2.32398605,2525.0,2524.4,2.77293]
[1725271139915,5.09627605,2525.0,2524.4,2.77293]
[1725271140486,4.35828269,2525.8,2524.4,2.77293]
[1725271140487,2.52028605,2525.5,2524.9,2.7723]
[1725271140786,2.4611,2525.5,2525.1,2.77209]
[1725271140991,2.52028605,2525.9,2525.4,2.77176]
[1725271141209,2.52028605,2525.9,2525.3,2.77187]
[1725271141612,2.52028605,2525.9,2525.1,5.62340351]
[1725271141822,2.77139,2525.8,2525.2,2.77196]
[1725271142021,0.05918605,2525.7,2525.2,2.85115351]
[1725271142220,0.05918605,2525.8,2525.3,2.77192]
[1725271142580,0.05918605,2525.8,2525.3,2.77186]
[1725271142814,2.4611,2525.9,2525.8,2.77139]
[1725271143134,2.82996605,2526.4,2525.4,0.07918968]
[1725271143135,2.52738605,2526.4,2526.0,2.77108]
[1725271143425,2.52738605,2526.4,2525.5,2.77168]
[1725271143720,0.25323861,2526.3,2525.3,3.45557535]
[1725271143935,2.83014605,2526.2,2525.3,3.45557535]
[1725271144226,0.05918605,2526.2,2525.1,2.77213]
[1725271144449,2.77129,2525.9,2525.1,2.77213]
[1725271144614,5.20031605,2525.8,2524.9,3.1709]
[1725271144833,0.05918605,2525.7,2525.0,0.317096]
[1725271145037,2.83069605,2525.7,2525.0,0.317096]
[1725271145235,2.83069605,2525.7,2524.5,3.050063]
[1725271145236,0.05918605,2525.7,2524.5,3.448683]
[1725271145548,2.7718,2525.5,2524.5,3.448623]
[1725271145705,0.05918605,2525.4,2524.6,2.77264]
[1725271145910,2.83103605,2525.4,2524.6,0.6221263]
[1725271146162,2.4356,2526.2,2524.8,7.10568269]
[1725271146452,0.05918605,2526.1,2525.1,5.54425]
[1725271146664,0.05918605,2526.1,2525.1,2.77209]
[1725271146943,2.77171,2525.6,2524.7,0.3986]
[1725271147166,2.80805705,2525.5,2524.7,0.3986]
[1725271147458,2.53088605,2525.5,2524.8,2.77239]
[1725271147804,2.53088605,2525.5,2524.6,3.3947963]
[1725271148004,2.53088605,2525.5,2524.6,0.6221263]
[1725271148005,2.77191,2525.4,2524.6,0.6221263]
[1725271148203,2.77191,2525.4,2524.4,3.17145]
[1725271148204,2.77207,2525.2,2524.4,3.17145]
[1725271148413,0.05918605,2525.2,2524.3,0.3986]
[1725271148643,0.05918605,2525.2,2524.7,2.77259]
[1725271148999,2.53088605,2525.5,2524.9,2.77234]
[1725271149442,2.53088605,2525.5,2524.8,0.07921062]
[1725271149645,2.53088605,2525.5,2524.7,2.77259]
[1725271149827,5.30261605,2525.5,2524.7,2.77259]
[1725271150029,2.53088605,2525.5,2524.8,0.07920249]
[1725271150244,0.05918605,2525.7,2524.8,0.07920249]
[1725271150466,0.005,2526.5,2525.5,2.77162]
[1725271150657,0.005,2526.5,2526.0,2.77113]
[1725271150964,0.005,2526.5,2525.8,2.77139]
[1725271151326,0.005,2526.5,2525.7,2.77149]
[1725271151533,2.77083,2526.4,2525.6,3.17016]
[1725271151848,2.77566,2526.5,2525.6,3.17016]
[1725271152015,3.053226,2526.5,2525.7,2.7715]
[1725271152406,0.05918605,2526.4,2525.6,3.17016]
[1725271152607,2.4358,2526.2,2525.6,0.3986]
[1725271152848,2.83032605,2526.1,2525.6,0.3986]
[1725271153020,0.05918605,2526.1,2525.6,0.3986]
[1725271153217,2.49498605,2526.2,2525.6,3.17011]
[1725271153415,0.05918605,2526.1,2525.6,0.3986]
[1725271153617,0.05918605,2526.1,2525.0,4.35828269]
[1725271153821,2.77151,2525.7,2524.9,0.3986]
[1725271154174,2.455,2525.5,2524.8,2.77242]
[1725271154455,2.51418605,2525.5,2524.8,2.77242]
[1725271154963,2.51418605,2525.5,2525.0,2.77225]
[1725271155103,0.05918605,2525.8,2525.3,2.77194]
[1725271155309,0.05918605,2525.8,2525.1,2.77208]
[1725271155855,0.05918605,2525.8,2524.9,2.77235]
[1725271155856,2.77158,2525.7,2524.9,2.77235]
[1725271156090,0.05918605,2525.6,2524.9,2.77235]
[1725271156292,0.05918605,2525.6,2524.7,3.17113]
[1725271156599,0.05918605,2525.6,2524.9,2.7723]
[1725271157100,0.05918605,2525.6,2524.9,2.77236]
[1725271157469,0.05918605,2525.6,2524.9,3.3347721]
[1725271157670,2.3802,2525.9,2525.2,2.77198]
[1725271157879,2.3802,2525.9,2525.4,2.77174]
[1725271158207,4.7699,2527.2,2525.5,0.07919046]
[1725271158208,0.05918605,2526.2,2525.5,0.07919046]
[1725271158357,0.05918605,2526.2,2525.6,2.77152]
[1725271158561,0.05918605,2526.2,2525.5,2.77164]
[1725271158562,2.3288,2526.1,2525.5,2.77164]
[1725271158787,0.05918605,2526.0,2525.4,2.77176]
[1725271159105,0.05918605,2526.0,2525.6,2.77155]
[1725271159259,2.38798605,2526.1,2525.6,3.325861]
[1725271159461,2.3288,2526.1,2525.7,2.77146]
[1725271159831,0.05918605,2526.4,2525.8,0.07918141]
[1725271159987,0.05918605,2526.4,2525.2,1.015655]
[1725271159988,2.77089,2526.3,2525.4,2.77178]
[1725271160178,2.83016605,2526.2,2525.4,2.77176]
[1725271160377,2.7711,2526.1,2525.4,2.77175]
[1725271160617,0.05918605,2526.0,2525.4,2.77175]
[1725271161697,0.05918605,2526.2,2525.5,2.77172]
[1725271161889,2.83016605,2526.2,2525.4,2.77175]
[1725271162090,3.62314766,2526.2,2525.4,2.77175]
[1725271162285,2.77111,2526.1,2525.4,2.77175]
[1725271162487,0.05918605,2526.0,2525.4,2.77175]
[1725271162921,2.77155,2525.7,2525.0,2.77223]
[1725271163122,2.77181,2525.5,2524.8,2.77241]
[1725271163279,0.05918605,2525.4,2524.8,2.77241]
[1725271163477,0.05918605,2525.4,2524.6,2.77262]
[1725271163478,2.3324,2525.3,2524.6,2.77262]
[1725271163748,0.05918605,2525.2,2524.6,2.77262]
[1725271164020,2.77235,2525.0,2524.3,2.77304]
[1725271164240,0.05918605,2524.9,2524.3,2.77304]
[1725271164381,0.05918605,2524.9,2524.4,2.77291]
[1725271165477,2.7721,2525.2,2524.4,2.77291]
[1725271165685,2.3324,2525.3,2524.4,2.77291]
[1725271165686,0.05918605,2525.1,2524.4,2.77285]
[1725271166382,2.83135605,2525.1,2524.4,2.77285]
[1725271166581,0.05918605,2525.1,2524.4,2.77285]
[1725271166907,0.05918605,2525.1,2524.5,2.77281]
[1725271167136,2.419,2525.0,2523.7,3.1722]
[1725271167417,2.419,2525.0,2523.6,2.7738]
[1725271167418,2.419,2524.4,2523.6,2.7738]
[1725271167579,0.05918605,2524.3,2523.6,2.7738]
[1725271167777,2.419,2524.4,2523.9,2.77347]
[1725271167975,2.419,2524.9,2524.4,2.77284]
[1725271168224,2.77268,2524.7,2523.5,2.7739]
[1725271168529,4.89642177,2525.7,2523.5,2.7739]
[1725271168530,2.3226,2524.4,2523.5,2.7739]
[1725271168716,0.05918605,2524.3,2523.5,2.7739]
[1725271169537,0.05918605,2524.3,2522.5,4.87047]
[1725271169538,2.4999,2524.2,2523.0,2.77446]
[1725271169719,2.83248605,2524.1,2523.3,2.77407]
[1725271170197,0.05918605,2524.1,2523.4,2.77399]
[1725271170780,0.05918605,2524.1,2523.4,3.33673111]
[1725271171237,2.4999,2524.2,2523.4,0.56274111]
[1725271171533,2.77246,2524.9,2524.1,2.77326]
[1725271171712,5.2721,2525.1,2523.6,0.07923267]
[1725271171713,0.05918605,2525.0,2523.6,0.07923267]
[1725271171898,0.05918605,2525.0,2524.2,2.77308]
[1725271171899,2.83146605,2525.0,2524.2,2.77308]
[1725271172295,2.83146605,2525.0,2524.4,2.77292]
[1725271172296,0.05918605,2525.0,2524.4,2.77292]
[1725271172498,2.55908605,2525.1,2524.6,2.77269]
[1725271172688,0.05918605,2525.0,2524.4,3.050212]
[1725271172905,0.05918605,2525.0,2524.4,0.277292]